[Event "4NCL 2021-22"]
[Site "England"]
[Date "2022.04.30"]
[Round "7.25"]
[White "Wall, Tim P"]
[Black "Jackson, James P"]
[Result "0-1"]
[ECO "D00"]
[WhiteElo "2281"]
[BlackElo "2407"]
[Annotator "TA"]
[PlyCount "68"]
[EventDate "2021.11.27"]
[EventType "team-tourn"]
[EventCountry "ENG"]
[SourceTitle "playchess.com"]
[Source "ChessBase"]
[SourceQuality "1"]
[TimeControl "40/6000+30:3000+30"]

{[%evp 9,68,0,50,61,60,58,55,64,72,41,64,64,81,50,43,0,0,0,0,-44,-53,-65,31,-41,-44,-107,-104,-109,-110,-107,-91,-133,-126,-342,-326,-336,-350,-340,-339,-385,-378,-629,-366,-382,-387,-518,-342,-534,-266,-861,-810,-672,-636,-1056,-722,-1010,-919,-29982,-29983,-29991,-29992]} 1. d4 {[%emt 0:05:21]} Nf6 {[%emt 0:00:07]} 2. Nc3 {[%emt 0:00:23]} d5 {[%emt 0:00:58]} 3. Bf4 {[%emt 0:00:20]} a6 {[%emt 0:03:13]} 4. e3 {[%emt 0:00:43]} c5 {[%emt 0:03:03]} 5. dxc5 {[%emt 0:01:27]} Nc6 {[%emt 0:00:06]} (5... Qa5 $11) 6. a3 $14 {[%emt 0:07:20] D00: 1 d4 d5: Unusual lines.} e5 {[%emt 0:07:10]} 7. Bg5 {[%emt 0:00:39]} Be6 {[%emt 0:00:08]} 8. b4 {[%emt 0:05:40] White is slightly better.} Be7 {[%emt 0:04:53]} 9. Nf3 {[%emt 0:01:06]} O-O {[%emt 0:06:37]} 10. Be2 {[%emt 0:01:57]} Qc7 {[%emt 0:05:48]} 11. Bxf6 {[%emt 0:13:56]} Bxf6 {[%emt 0:00:06]} 12. e4 {[%emt 0:00:15]} dxe4 {[%emt 0:02:23]} 13. Nxe4 {[%emt 0:00:10]} Be7 {[%emt 0:03:22] Against Qd6} 14. O-O {[%emt 0:04:11] [#]} Rad8 $146 {[%emt 0:05:24][%mdl 1024] Black has compensation.} ({Predecessor:} 14... h6 15. Ned2 Rad8 16. Qe1 Bf5 17. Bc4 Bxc2 18. Rc1 Bg6 19. Ne4 Nd4 20. Qe3 Nxf3+ 21. Qxf3 {½-½ (31) Sorvari,J (2066)-Lehtila,T (2108) Finland 2016}) 15. Qe1 {[%emt 0:07:19]} h6 {[%emt 0:03:50]} (15... f5 $15 16. Neg5 Bc8) 16. Qc3 {[%emt 0:12:13]} (16. Ned2 $14) 16... f5 $1 $15 {[%emt 0:12:49]} 17. Nd6 {[%emt 0:07:27] [#]} ({White should play} 17. Ng3 $15) 17... e4 $1 $17 {[%emt 0:00:11]} ({Reject} 17... Bxd6 $6 18. cxd6 Qxd6 19. Rad1 $11) 18. Bc4 {[%emt 0:03:14]} Bxc4 {[%emt 0:02:38]} 19. Qxc4+ {[%emt 0:00:10]} Kh7 {[%emt 0:00:04]} 20. Nd2 {[%emt 0:14:28]} b5 {[%emt 0:08:25]} 21. Qa2 {[%emt 0:08:09] This move loses the game for White.} (21. Qc3 $17 {was worth a try.}) 21... Bxd6 $19 {[%emt 0:02:37]} 22. cxd6 {[%emt 0:02:06]} Rxd6 {[%emt 0:00:06]} ({Worse is} 22... Qxd6 23. Nb3 $17) 23. Nb3 {[%emt 0:02:40]} Ne5 {[%emt 0:05:25][%cal Bc6e5,Be5c4,Bc4d2,Bd2f3][%mdl 32] [#] Hoping for ...Rg6.} 24. Nc5 {[%emt 0:00:54]} Rg6 {[%emt 0:04:24]} 25. Kh1 $2 {[%emt 0:00:20]} (25. g3 Re8 26. Qd5) 25... Rff6 {[%emt 0:06:12][%cal Og6g2] ( -> ...Rxg2!)} 26. f4 {[%emt 0:04:01]} Nc4 {[%emt 0:05:10][%cal Og6g2]} 27. Rae1 {[%emt 0:01:01]} Rd6 {[%emt 0:01:20]} 28. Re2 {[%emt 0:00:19]} (28. Nb3 $142) 28... Rd5 {[%emt 0:01:52]} (28... Rd2 $142 29. Rxd2 Nxd2) 29. g3 $2 {[%emt 0:02:55]} (29. Qa1) 29... Rgd6 {[%emt 0:00:26]} 30. Qa1 {[%emt 0:00:30] Prevents Rd1.} Qf7 {[%emt 0:00:29] Threatens to win with ...Rd2.} 31. a4 {[%emt 0:01:43]} Nd2 {[%emt 0:03:31]} 32. Rfe1 {[%emt 0:01:04]} Nf3 {[%emt 0:00:28]} 33. Rf1 {[%emt 0:00:09]} Rd2 {[%emt 0:00:53]} 34. Ref2 {[%emt 0:00:59]} Qh5 {[%emt 0:01:38] Weighted Error Value: White=1.07/Black=0.44} 0-1

[Event "4NCL 2021-22"]
[Site "England"]
[Date "2022.04.30"]
[Round "7.26"]
[White "D'Costa, Lorin"]
[Black "Townsend, M Paul"]
[Result "1/2-1/2"]
[ECO "A14"]
[WhiteElo "2377"]
[BlackElo "2284"]
[Annotator "TA"]
[PlyCount "96"]
[EventDate "2021.11.27"]
[EventType "team-tourn"]
[EventCountry "ENG"]
[SourceTitle "playchess.com"]
[Source "ChessBase"]
[SourceQuality "1"]
[TimeControl "40/6000+30:3000+30"]

{[%evp 19,96,0,0,0,-10,-2,0,0,1,0,0,0,39,45,41,18,14,0,0,-28,-20,-19,0,0,0,0,0,0,0,0,0,0,0,0,0,0,0,0,0,0,0,0,0,0,0,0,13,20,16,0,21,8,15,16,10,0,0,0,0,0,0,0,0,0,0,0,0,0,0,0,0,0,0,0,0,0,0,0,0]} 1. Nf3 {[%emt 0:00:47]} Nf6 {[%emt 0:00:15]} 2. c4 {[%emt 0:00:42]} e6 {[%emt 0:00:24]} 3. g3 {[%emt 0:00:44]} d5 {[%emt 0:00:21]} 4. Bg2 {[%emt 0:00:55]} Be7 {[%emt 0:00:38]} 5. O-O {[%emt 0:00:34]} O-O {[%emt 0:00:06]} 6. b3 {[%emt 0:02:28]} c5 {[%emt 0:00:44]} 7. Bb2 {[%emt 0:01:38]} Nc6 {[%emt 0:00:48]} 8. e3 {[%emt 0:03:18]} d4 {[%emt 0:00:57]} 9. exd4 {[%emt 0:00:47]} cxd4 {[%emt 0:00:08]} 10. Re1 {[%emt 0:00:38]} Re8 {[%emt 0:01:24]} 11. Ne5 {[%emt 0:13:44] A14: English Opening: 1...e6 with b3 by White.} Nxe5 {[%emt 0:03:11]} 12. Rxe5 {[%emt 0:09:18]} Bf8 {[%emt 0:00:14]} 13. d3 {[%emt 0:05:16]} Nd7 {[%emt 0:05:27]} 14. Re1 {[%emt 0:01:05]} e5 {[%emt 0:00:56]} 15. Ba3 {[%emt 0:13:16] [#]} Qc7 $146 {[%emt 0:15:29]} ({Predecessor:} 15... Bxa3 16. Nxa3 Nc5 17. b4 Nd7 18. Nb5 Re6 19. c5 Nf6 20. Nd6 Re7 21. Qd2 Ne8 {1-0 (34) Nguyen,P (2444)-Sieber,F (2287) Warsaw 2017}) 16. Bxf8 {[%emt 0:05:35]} Nxf8 {[%emt 0:00:59]} 17. Na3 {[%emt 0:01:03]} Bd7 {[%emt 0:03:54]} 18. Nb5 {[%emt 0:11:19]} Qb8 {[%emt 0:31:15]} 19. Qd2 {[%emt 0:12:12]} Bc6 {[%emt 0:08:16]} 20. Re2 {[%emt 0:08:02] The position is equal.} Nd7 {[%emt 0:10:24]} 21. Rae1 {[%emt 0:02:22]} Bxg2 {[%emt 0:01:11]} 22. Kxg2 {[%emt 0:00:09]} Re6 {[%emt 0:00:22]} 23. f4 {[%emt 0:07:08] fxe5 is the strong threat.} a6 {[%emt 0:02:30]} 24. Na3 {[%emt 0:00:05]} Qd6 {[%emt 0:00:51]} 25. Nc2 {[%emt 0:00:48]} Rae8 {[%emt 0:07:40]} 26. fxe5 {[%emt 0:04:20]} Nxe5 {[%emt 0:00:47] [#] White must now prevent ...Qc6+.} 27. Re4 {[%emt 0:00:43]} Nc6 {[%emt 0:03:51]} 28. Rxe6 {[%emt 0:00:43]} Rxe6 {[%emt 0:00:38]} 29. Rxe6 {[%emt 0:01:33]} Qxe6 {[%emt 0:03:02]} 30. Qf2 {[%emt 0:00:55]} Qe5 {[%emt 0:01:19]} 31. Qf3 {[%emt 0:02:41]} Kf8 {[%emt 0:00:54]} 32. b4 {[%emt 0:00:35][%cal Bb3b4,Bb4b5][%mdl 32]} Ke8 {[%emt 0:04:56]} 33. Kf2 {[%emt 0:00:38]} f6 {[%emt 0:01:12]} 34. a3 {[%emt 0:00:48][%cal Ba2a3,Ba3a4][%mdl 32]} h5 {[%emt 0:00:46]} 35. a4 {[%emt 0:00:32]} (35. Qd5 {is more complex.} Ke7 36. h4 g6 37. Kf3) 35... a5 {[%emt 0:00:33]} 36. b5 {[%emt 0:00:36]} Nb4 {[%emt 0:00:14]} 37. Ne1 {[%emt 0:00:25]} b6 {[%emt 0:00:54]} 38. Qa8+ {[%emt 0:00:33]} Kf7 {[%emt 0:00:17] [#] And now ...Qe3+ would win.} 39. Qf3 {[%emt 0:00:29] Prevents Qe3+.} h4 {[%emt 0:00:29]} 40. Kf1 {[%emt 0:00:30]} g5 {[%emt 0:01:25]} 41. gxh4 {[%emt 0:27:06]} gxh4 {[%emt 0:00:42]} 42. Ng2 {[%emt 0:03:12]} Qxh2 {[%emt 0:14:45]} 43. Nf4 {[%emt 0:00:47]} Nc2 {[%emt 0:09:28] aiming for ...Ne3+.} 44. Qb7+ {[%emt 0:06:05]} Kg8 {[%emt 0:14:46]} 45. Qc8+ {[%emt 0:00:45]} Kg7 {[%emt 0:00:44]} 46. Qg4+ {[%emt 0:00:14]} Kf8 {[%emt 0:00:17]} 47. Qc8+ {[%emt 0:00:13]} Kg7 {[%emt 0:00:07] ( -> ...Ne3+)} 48. Qg4+ {[%emt 0:00:04]} Kf8 {[%emt 0:00:07] Weighted Error Value: White=0.03 (flawless) /Black=0.03 (flawless)} 1/2-1/2

[Event "4NCL 2021-22"]
[Site "England"]
[Date "2022.04.30"]
[Round "7.27"]
[White "Sucikova, Svetlana"]
[Black "Griffiths, Ryan Rhys"]
[Result "1/2-1/2"]
[ECO "E17"]
[WhiteElo "2200"]
[BlackElo "2352"]
[Annotator "TA RC"]
[PlyCount "101"]
[EventDate "2021.11.27"]
[EventType "team-tourn"]
[EventCountry "ENG"]
[SourceTitle "playchess.com"]
[Source "ChessBase"]
[SourceQuality "1"]
[TimeControl "40/6000+30:3000+30"]

{[%evp 24,101,7,-5,6,-29,-16,-23,12,12,12,6,31,31,27,0,0,0,-8,0,34,18,125,134,166,166,219,155,162,162,166,130,128,124,125,122,123,123,123,114,114,115,114,114,114,115,120,78,78,78,81,78,78,81,81,81,70,56,56,56,98,98,135,134,387,380,380,380,364,249,208,104,104,8,59,59,59,59,59,59]} 1. d4 {[%emt 0:01:29]} Nf6 {[%emt 0:00:10]} 2. c4 {[%emt 0:02:11]} e6 {[%emt 0:00:09]} 3. Nf3 {[%emt 0:00:26]} b6 {[%emt 0:00:26]} 4. g3 {[%emt 0:00:41]} Ba6 {[%emt 0:00:19]} 5. b3 {[%emt 0:00:53]} Bb4+ {[%emt 0:00:17]} 6. Bd2 {[%emt 0:00:59]} Be7 {[%emt 0:00:08]} 7. Bg2 {[%emt 0:01:23]} d5 {[%emt 0:00:28]} 8. O-O {[%emt 0:02:40]} O-O {[%emt 0:01:05]} 9. Bc3 {[%emt 0:11:36]} Nbd7 {[%emt 0:05:37]} 10. Nbd2 {[%emt 0:01:43]} c5 {[%emt 0:01:13]} 11. Bb2 {[%emt 0:03:26]} Rc8 {[%emt 0:00:57]} 12. Rc1 {[%emt 0:05:44]} Bb7 {[%emt 0:12:36]} 13. Re1 {[%emt 0:02:56]} Rc7 {[%emt 0:03:16] E17: Queen's Indian: 4 g3 Bb7 5 Bg2 Be7.} 14. Ne5 {[%emt 0:09:13]} cxd4 {[%emt 0:04:30]} 15. Bxd4 {[%emt 0:09:41] [#]} Bb4 $146 {[%emt 0:09:13] Black has an edge.} ({Predecessor:} 15... Nxe5 16. Bxe5 Rd7 17. Qc2 Ng4 18. Ba1 dxc4 19. Nxc4 Bxg2 20. Kxg2 Qa8+ 21. Kg1 Bc5 22. e3 Rfd8 23. h3 Nh6 {½-½ (49) Raines,D (1090)-Millar,B (1232) LSS email 2010}) 16. cxd5 {[%emt 0:03:06]} Nxd5 {[%emt 0:02:45]} 17. Nd3 {[%emt 0:08:54]} Ba3 {[%emt 0:08:32]} 18. Rxc7 {[%emt 0:04:27]} Qxc7 {[%emt 0:00:08]} 19. e4 {[%emt 0:01:46]} Nb4 {[%emt 0:11:10]} 20. Nc4 {[%emt 0:04:12]} ({Of course not} 20. Qg4 e5 21. Nxb4 Bxb4 $17) 20... Nxd3 {[%emt 0:07:11]} 21. Qxd3 {[%emt 0:00:27]} Bb4 {[%emt 0:12:50]} 22. Rd1 {[%emt 0:01:43][%cal Od4g7]} b5 {[%emt 0:02:43] [#]} (22... Nc5 $11 {remains equal.} 23. Qc2 Nd7) 23. Ne3 $1 $16 {[%emt 0:02:50][%cal Od4g7]} ({Wrong is} 23. Bxa7 $2 Bc8 24. Nd6 Bxd6 $19) 23... Bc6 {[%emt 0:00:47] [#]} 24. Bxg7 $1 {[%emt 0:03:27]} Ne5 {[%emt 0:05:25]} (24... Kxg7 $142 25. Qd4+ Qe5) 25. Bxe5 {[%emt 0:03:03]} Qxe5 {[%emt 0:00:07]} 26. Ng4 {[%emt 0:00:52]} Qg7 {[%emt 0:00:23] [#]} 27. e5 $1 {[%emt 0:03:13] And now Nf6+ would win.} Qxg4 {[%emt 0:00:06]} 28. Bxc6 {[%emt 0:00:05]} Be7 {[%emt 0:00:06]} 29. Bf3 {[%emt 0:02:38]} Qb4 {[%emt 0:01:59]} 30. Qe3 {[%emt 0:02:22] White is more active.} Rd8 {[%emt 0:00:05]} 31. Rxd8+ {[%emt 0:07:13]} Bxd8 {[%emt 0:00:07]} 32. Qxa7 {[%emt 0:00:05]} Qe1+ {[%emt 0:01:01]} 33. Kg2 {[%emt 0:00:17]} Qxe5 {[%emt 0:00:24]} 34. Qa8 {[%emt 0:02:41]} Qd4 {[%emt 0:01:39]} 35. a4 {[%emt 0:00:48]} bxa4 {[%emt 0:01:20]} 36. bxa4 {[%emt 0:00:40]} Kg7 {[%emt 0:00:12]} 37. Qe4 {[%emt 0:07:20]} (37. Bh5 {keeps more tension.} Bb6 38. Qf3 Qf6 39. Qg4+) 37... Qxe4 {[%emt 0:01:35]} 38. Bxe4 {[%emt 0:00:01][%mdl 4096] Endgame KB-KB} f5 {[%emt 0:04:44]} 39. Bc2 {[%emt 0:00:25]} Kf6 {[%emt 0:00:37]} 40. f4 {[%emt 0:00:46]} e5 {[%emt 0:00:29]} 41. Kf3 {[%emt 0:05:46]} Bb6 {[%emt 0:02:29]} 42. g4 {[%emt 0:05:28] aiming for g5+.} fxg4+ {[%emt 0:01:16]} 43. Kxg4 {[%emt 0:00:05]} exf4 $2 {[%emt 0:00:11][%mdl 8192]} (43... h6 $16 {was called for.}) 44. Bxh7 $18 {[%emt 0:00:15]} Bc7 {[%emt 0:00:23][%cal Of4f3]} 45. h4 {[%emt 0:00:31]} Kg7 {[%emt 0:00:16]} 46. Bd3 {[%emt 0:00:48]} Kh6 {[%emt 0:00:13][%cal Of4f3]} 47. Be4 {[%emt 0:00:07]} (47. Be2 $18) 47... Bd8 {[%emt 0:00:22]} 48. Kxf4 {[%emt 0:01:09]} ({Better is} 48. Bf3 $16) 48... Bxh4 {[%emt 0:00:08]} ({Black should play} 48... Kh5 $11) 49. a5 $14 {[%emt 0:00:07][%cal Ba4a5,Ba5a6][%mdl 32] White is slightly better.} Bd8 {[%emt 0:00:08]} 50. a6 {[%emt 0:00:06] Intending a7 and mate.} Bb6 {[%emt 0:00:06]} 51. Ke5 {[%emt 0:00:50] Weighted Error Value: White=0.16 (very precise) /Black=0.24 (precise)} 1/2-1/2

[Event "4NCL 2021-22"]
[Site "England"]
[Date "2022.04.30"]
[Round "7.28"]
[White "Taylor, Martin R"]
[Black "Weller, Jean-Luc"]
[Result "1-0"]
[ECO "E32"]
[WhiteElo "2343"]
[BlackElo "2235"]
[Annotator "TA"]
[PlyCount "63"]
[EventDate "2021.11.27"]
[EventType "team-tourn"]
[EventCountry "ENG"]
[SourceTitle "playchess.com"]
[Source "ChessBase"]
[SourceQuality "1"]
[TimeControl "40/6000+30:3000+30"]

{[%evp 14,63,4,3,5,5,0,0,0,0,0,0,-5,-7,0,-8,20,23,33,35,35,35,34,29,56,18,61,61,65,66,58,60,61,58,114,113,156,147,139,135,271,266,307,298,380,368,595,589,559,433,434,423]} 1. d4 {[%emt 0:00:04]} Nf6 {[%emt 0:00:21]} 2. c4 {[%emt 0:00:08]} e6 {[%emt 0:00:11]} 3. Nc3 {[%emt 0:00:05]} Bb4 {[%emt 0:00:12]} 4. Qc2 {[%emt 0:00:08]} O-O {[%emt 0:00:11]} 5. a3 {[%emt 0:00:55]} Bxc3+ {[%emt 0:00:14]} 6. Qxc3 {[%emt 0:00:05]} b6 {[%emt 0:00:24]} 7. Bg5 {[%emt 0:00:22]} Bb7 {[%emt 0:00:28]} 8. e3 {[%emt 0:00:26]} d6 {[%emt 0:01:08] E32: Nimzo-Indian: Classical (4 Qc2): 4...0-0.} 9. Ne2 {[%emt 0:00:43]} Nbd7 {[%emt 0:00:58]} 10. Qd3 $1 {[%emt 0:00:23][%mdl 4] is now more promising than 10.Qc2.} c5 {[%emt 0:05:34] The position is equal.} 11. Nc3 {[%emt 0:02:48]} Qe7 {[%emt 0:25:50]} 12. Rd1 {[%emt 0:01:48]} Rfd8 {[%emt 0:04:52]} 13. d5 {[%emt 0:03:56]} h6 {[%emt 0:01:18]} 14. Bh4 {[%emt 0:03:14]} Ne5 {[%emt 0:03:08]} 15. Qc2 {[%emt 0:02:55]} Ng6 {[%emt 0:01:33]} 16. Bxf6 {[%emt 0:02:45]} Qxf6 {[%emt 0:00:10]} 17. Be2 {[%emt 0:00:26]} Ne7 {[%emt 0:10:00]} 18. O-O {[%emt 0:07:12] [#]} Qe5 $146 {[%emt 0:14:06][%cal Re6d5]} ({Predecessor:} 18... exd5 19. Bf3 Rab8 20. Bxd5 {½-½ (20) Dreev,A (2697)-Ponomariov,R (2723) Poikovsky 2006}) 19. Bf3 {[%emt 0:06:49]} f5 {[%emt 0:12:13]} 20. Qe2 {[%emt 0:15:23]} Ng6 {[%emt 0:04:15]} 21. dxe6 {[%emt 0:02:45]} Bxf3 {[%emt 0:00:25]} 22. Qxf3 {[%emt 0:00:22] And now Nb5 would win.} Qxe6 {[%emt 0:00:13]} 23. b3 {[%emt 0:09:11]} Ne5 {[%emt 0:02:38]} (23... Rab8 $14) 24. Qd5 $16 {[%emt 0:02:55]} Kf7 {[%emt 0:12:29] [#]} 25. Nb5 $1 {[%emt 0:04:58]} Qxd5 {[%emt 0:00:17]} 26. Rxd5 {[%emt 0:00:10]} a6 {[%emt 0:00:23] This costs Black the game.} (26... g6 $16 27. Rfd1 (27. Nxd6+ Kf8 $16) (27. Rxd6 a6 $11) 27... Ke7) 27. Nxd6+ $18 {[%emt 0:01:47]} Ke6 {[%emt 0:00:11]} 28. Rfd1 {[%emt 0:00:49][%cal Od5e5] Strongly threatening Rxe5+!} Rf8 {[%emt 0:01:05]} 29. f4 {[%emt 0:05:35]} Ng6 {[%emt 0:01:48] [#]} (29... Nf7 30. Nxf5 g6) 30. g4 {[%emt 0:01:17] White is clearly winning.} Nh4 {[%emt 0:00:43]} 31. Nxf5 {[%emt 0:00:43]} Nxf5 {[%emt 0:00:56]} 32. Re5+ {[%emt 0:00:12] Weighted Error Value: White=0.07 (flawless) /Black=0.30} ({Weaker is} 32. Rxf5 Rxf5 33. gxf5+ Kxf5 $18) 1-0

[Event "4NCL 2021-22"]
[Site "England"]
[Date "2022.04.30"]
[Round "7.29"]
[White "Walton, Alan J"]
[Black "Franklin, Samuel G A"]
[Result "0-1"]
[ECO "A45"]
[WhiteElo "2116"]
[BlackElo "2335"]
[Annotator "TA"]
[PlyCount "52"]
[EventDate "2021.11.27"]
[EventType "team-tourn"]
[EventCountry "ENG"]
[SourceTitle "playchess.com"]
[Source "ChessBase"]
[SourceQuality "1"]
[TimeControl "40/6000+30:3000+30"]

{[%evp 9,52,24,25,28,34,8,19,11,8,18,10,0,22,13,10,27,20,0,15,0,7,-75,2,0,29,-22,29,42,35,-45,-49,-53,-24,-37,-25,-111,-123,-352,-364,-986,-976,-977,-957,-897,-810]} 1. d4 {[%emt 0:00:04][%cal Bd2d4,Bd4d5][%mdl 32]} Nf6 {[%emt 0:00:26]} 2. Bg5 {[%emt 0:00:10]} e6 {[%emt 0:00:22]} 3. e4 {[%emt 0:00:06]} c5 {[%emt 0:00:49]} 4. d5 {[%emt 0:00:07]} d6 {[%emt 0:01:13]} 5. Nc3 {[%emt 0:00:26]} Be7 {[%emt 0:01:43]} 6. Bb5+ {[%emt 0:01:20] A45: Trompowsky Attack.} Bd7 {[%emt 0:02:53]} 7. dxe6 {[%emt 0:01:42]} fxe6 {[%emt 0:00:55]} 8. e5 {[%emt 0:00:53] The position is equal.} dxe5 {[%emt 0:01:56]} 9. Bxf6 {[%emt 0:00:32]} Bxf6 {[%emt 0:00:59]} 10. Qh5+ {[%emt 0:00:53]} g6 {[%emt 0:11:13]} 11. Qg4 {[%emt 0:01:53] [#]} Qe7 $146 {[%emt 0:09:38]} ({Predecessor:} 11... Nc6 12. O-O-O Qe7 13. Ne4 a6 14. Bd3 O-O-O 15. c3 Kc7 16. Nf3 Bg7 17. Kb1 b5 {0-1 (46) Ozenir,E (2293)-Pogosyan,S (2373) Porto Carras 2018}) 12. Bxd7+ {[%emt 0:05:37]} Nxd7 {[%emt 0:00:21]} 13. O-O-O {[%emt 0:01:09]} O-O {[%emt 0:02:08]} 14. Nf3 {[%emt 0:08:14][%mdl 1024] White has compensation.} Bg7 {[%emt 0:01:30]} 15. Ne4 {[%emt 0:40:46]} (15. Rhe1 $11) 15... Nb6 {[%emt 0:12:29]} (15... Rf4 $17 16. Qg5 Qf8) 16. Qg5 {[%emt 0:15:49]} Qc7 {[%emt 0:06:16]} 17. Qe3 {[%emt 0:06:37]} (17. Qg3 $142) 17... Rac8 {[%emt 0:06:58]} (17... c4 $142) 18. Nfg5 $1 $11 {[%emt 0:00:37] [#] Qh3 is the strong threat. Pair of Knights!} Bh6 {[%emt 0:09:42]} 19. Qh3 {[%emt 0:01:38]} ({Better is} 19. Kb1 $14) 19... Bxg5+ $15 {[%emt 0:02:18]} 20. Nxg5 {[%emt 0:00:04]} Rf5 {[%emt 0:00:26]} (20... Rxf2 $2 21. Qxe6+ Kg7 22. Rhf1 Rxf1 23. Rxf1 $18) (20... Qe7 $5 {[%cal Re7g5]} 21. Ne4 Nd5 $15) 21. Ne4 {[%emt 0:07:00]} ({But not} 21. Nxe6 $2 Qe7 22. Qb3 c4 $19) (21. Qh6 {is more complex.} c4 22. c3 Qe7 23. h4) 21... Nd5 {[%emt 0:06:56]} 22. g3 {[%emt 0:07:29]} (22. Kb1 $11 {remains equal.}) 22... c4 $17 {[%emt 0:01:42][%cal Bc5c4,Bc4c3][%mdl 32] [#] Hoping for ...c3.} 23. Rhe1 $2 {[%emt 0:02:34] White does not recover from this.} (23. g4 $17 Rf4 24. g5) 23... c3 $19 {[%emt 0:03:00]} 24. b3 {[%emt 0:02:34]} (24. bxc3 Nxc3 25. Rd2 Nxe4 26. Rxe4) 24... Qe7 {[%emt 0:03:19] ( -> ...Qa3+). Black is clearly winning.} 25. Rd3 {[%emt 0:00:52]} Qa3+ {[%emt 0:01:26]} 26. Kd1 {[%emt 0:00:05]} Qxa2 {[%emt 0:00:23] Weighted Error Value: White=0.51/Black=0.17 (very precise)} 0-1

[Event "4NCL 2021-22"]
[Site "England"]
[Date "2022.04.30"]
[Round "7.30"]
[White "Sowray, Peter J"]
[Black "Shaw, Peter"]
[Result "1-0"]
[ECO "A96"]
[WhiteElo "2226"]
[BlackElo "2078"]
[Annotator "TA"]
[PlyCount "69"]
[EventDate "2021.11.27"]
[EventType "team-tourn"]
[EventCountry "ENG"]
[SourceTitle "playchess.com"]
[Source "ChessBase"]
[SourceQuality "1"]
[TimeControl "40/6000+30:3000+30"]

{[%evp 13,69,37,53,45,50,54,56,27,68,64,71,65,79,81,122,63,149,104,113,103,43,65,267,277,262,265,448,447,622,616,1326,403,373,390,370,296,330,262,240,186,327,323,317,324,319,324,366,343,585,585,585,582,1210,1198,1185,1167,1133,1122]} 1. d4 {[%emt 0:00:05]} f5 {[%emt 0:00:14]} 2. c4 {[%emt 0:00:49]} e6 {[%emt 0:00:20]} 3. Nf3 {[%emt 0:00:09]} Nf6 {[%emt 0:00:13]} 4. g3 {[%emt 0:00:25]} Be7 {[%emt 0:00:17]} 5. Bg2 {[%emt 0:00:19]} O-O {[%emt 0:00:08]} 6. O-O {[%emt 0:00:10]} d6 {[%emt 0:00:15]} 7. Nc3 {[%emt 0:00:14]} Ne4 {[%emt 0:00:20]} 8. Nxe4 {[%emt 0:03:19] A96: Classical Dutch: Fluid Systems: Early deviations.} fxe4 {[%emt 0:00:41]} 9. Ne1 {[%emt 0:00:11]} d5 {[%emt 0:01:02]} 10. Be3 {[%emt 0:08:44] [#] White is slightly better.} b6 $146 {[%emt 0:09:17]} ({Predecessor:} 10... Nc6 11. Rc1 Bf6 12. f3 dxc4 13. Rxc4 e5 14. d5 exf3 15. Nxf3 Ne7 16. Bc5 b6 17. Bxe7 Qxe7 {½-½ (49) Ovetchkin,R (2518)-Azarov,S (2603) Cheliabinsk 2021}) 11. f3 {[%emt 0:00:40]} exf3 {[%emt 0:02:55]} 12. Nxf3 {[%emt 0:02:06]} Bb7 {[%emt 0:01:00]} 13. Bh3 {[%emt 0:14:21]} Qc8 {[%emt 0:07:37]} 14. Qc2 {[%emt 0:11:15]} (14. Ng5 $16 Bxg5 15. Bxg5 (15. Rxf8+ Qxf8 16. Bxe6+ Kh8 $16)) 14... dxc4 {[%emt 0:14:48]} (14... Nc6 $14) 15. Ng5 {[%emt 0:08:22][%csl Gg5][%cal Rc2h7] White is more active.} ({Don't take} 15. Qxc4 $6 Bd5 16. Qd3 Qa6 $14) 15... Rxf1+ {[%emt 0:05:59]} 16. Rxf1 {[%emt 0:00:10][%csl Gg5][%cal Rc2h7] Dancing on a razor blade.} Bxg5 {[%emt 0:00:09]} 17. Bxg5 $40 {[%emt 0:00:09][%mdl 128] White has some attack.} Qd7 $2 {[%emt 0:09:03] A mistake that costs the game.} (17... Qe8 $14) 18. Qxc4 $18 {[%emt 0:01:31]} Bd5 {[%emt 0:02:44]} 19. Qd3 {[%emt 0:02:42]} ({Worse is} 19. Qb4 Nc6 20. Qa4 h6 $11) 19... Qe8 $2 {[%emt 0:18:50]} (19... Nc6 20. e4 Bxa2) 20. e4 {[%emt 0:06:33]} Bb7 {[%emt 0:00:17]} 21. Qc4 {[%emt 0:03:21][%csl LRc7,LRe6]} h6 {[%emt 0:04:58]} 22. Qxe6+ {[%emt 0:10:18]} (22. Bxe6+ $142 Kh8 23. Qxc7 $1 hxg5 24. Qxb7) 22... Qxe6 {[%emt 0:00:09]} 23. Bxe6+ {[%emt 0:00:02]} Kh7 {[%emt 0:01:01]} 24. Bf4 {[%emt 0:01:20]} Bxe4 {[%emt 0:04:15]} 25. Re1 {[%emt 0:04:16]} Bg6 {[%emt 0:04:12]} 26. Bxc7 {[%emt 0:06:21] Strongly threatening Bd5. This bishop pair is nice.} Nc6 {[%emt 0:03:30]} (26... Na6 {was worth a try.}) 27. d5 {[%emt 0:06:02]} Nd4 {[%emt 0:05:20] [#]} 28. Bg4 {[%emt 0:01:30] Inhibits Nf3+.} h5 {[%emt 0:06:05] [#]} 29. Bd1 {[%emt 0:00:14]} Rf8 {[%emt 0:01:37]} 30. d6 {[%emt 0:02:15] d7 is the strong threat.} Be8 {[%emt 0:05:16] [#]} (30... Rf7 31. Re5 Bd3) 31. Rxe8 $1 {[%emt 0:03:14][%mdl 512] White is clearly winning.} Rxe8 {[%emt 0:00:09]} 32. d7 {[%emt 0:00:05]} Re1+ {[%emt 0:01:43]} 33. Kf2 {[%emt 0:00:12]} Rxd1 {[%emt 0:00:40]} 34. d8=Q {[%emt 0:00:10]} Rd2+ {[%emt 0:00:04]} 35. Ke3 {[%emt 0:00:51] Weighted Error Value: White=0.29 (precise) /Black=0.70} 1-0